{"text_format":"3","workbook":"xlsx","n_sheets":1,"sheets":["Sheet1"],"read":"whole","date_system":"1900"}

{"sheet":"Sheet1","index":0,"n_rows":24,"n_cols":15,"rows_kept":24,"merged":[[2,6,2,8],[27,2,27,3]]}
[]
[{"$nulls":5},"Tender Ref:"]
[{"$nulls":5},"Name of Tenderer :"]
[]
[null,"Item No","Description ","Qty","Foreicn Currency ","Currency Unit Price ","Total Currency value  ","Tendered ROE","Foreign portion unit price ( in ZAR)","Total ZAR value of Foreign Portion","Local  portion (unit Price)","Total Local Portion","Total unit price ( in ZAR)","Total Price (in ZAR)"]
[]
[null,1,"Breaker analyser in hard Transport Case. Including Reporting Software all Communications Cable’s and Accessorie box",1,{"$nulls":8},{"$f":"+K7+I7","v":0},{"$f":"+M7*D7","v":0}]
[null,2,"Transducer fastening system for various breakers. ABB and Actom",3,{"$nulls":8},{"$f":"+K8+I8","v":0},{"$f":"+M8*D8","v":0}]
[null,3,"Digital Transducers RSI 503 2500 ppr",3,{"$nulls":8},0,0]
[null,4,"Linear transducer, 225 with 160 mm stroke",3,{"$nulls":8},0,0]
[null,5,"Transducer digital cables 10 meter",3,{"$nulls":8},0,0]
[null,6,"Transducer digital cables 25 meter",3,{"$nulls":8},0,0]
[null,7,"Cables for Resistance testing 10 meter",3,{"$nulls":8},0,0]
[null,8,"Cables for Resistance testing 25 Meter",3,{"$nulls":8},0,0]
[null,9,"Cables for main Contact 10 meter",3,{"$nulls":8},0,0]
[null,10,"Cables for Main contact 25 meter",3,{"$nulls":8},0,0]
[null,11,"Cables for motor coils",3,{"$nulls":8},0,0]
[null,12,"Data logger that is compatible with the Breaker analyser and windows operating system. Incl. all cables and soft carry  case",1,{"$nulls":8},0,0]
[]
[]
[]
[{"$nulls":5},"Total",{"$f":"SUM(G6:G21)","v":0},{"$nulls":5},"Total",{"$f":"SUM(N6:N21)","v":0},"(excl VAT)"]
[{"$nulls":13},{"$f":"+N22*(15/100)","v":0},"VAT"]
[{"$nulls":13},{"$f":"+N22+N23","v":0},"Total (incl VAT)"]